[Event "Early-Titled-Tuesday-Blitz-May-14-2024"]
[Site "Chess.com"]
[Date "2024.05.14"]
[Round "3"]
[White "ReinisUz"]
[Black "NowInChess"]
[Result "1-0"]
[WhiteElo "2417"]
[BlackElo "2244"]
[TimeControl "180+1"]
[EndTime "8:28:35 PDT"]
[Termination "ReinisUz won on time"]

1. c4 {[%clk 0:03:00.9]} 1... Nf6 {[%clk 0:02:56]} 2. Nc3 {[%clk 0:03:00.9]}
2... e5 {[%clk 0:02:55.4]} 3. g3 {[%clk 0:03:00.3]} 3... d6 {[%clk 0:02:54.4]}
4. Bg2 {[%clk 0:03:00.3]} 4... g6 {[%clk 0:02:55]} 5. e4 {[%clk 0:03:00.1]} 5...
Bg7 {[%clk 0:02:55.2]} 6. Nge2 {[%clk 0:03:00.4]} 6... O-O {[%clk 0:02:55.3]} 7.
O-O {[%clk 0:03:00.8]} 7... Nc6 {[%clk 0:02:55.5]} 8. d3 {[%clk 0:03:01]} 8...
Be6 {[%clk 0:02:36.9]} 9. h3 {[%clk 0:02:59.4]} 9... Nh5 {[%clk 0:02:30.4]} 10.
Kh2 {[%clk 0:02:56.2]} 10... f5 {[%clk 0:02:25.7]} 11. f4 {[%clk 0:02:56.2]}
11... exf4 {[%clk 0:02:07]} 12. Nxf4 {[%clk 0:02:54.4]} 12... Nxf4 {[%clk
0:02:06.4]} 13. Bxf4 {[%clk 0:02:55.3]} 13... Qd7 {[%clk 0:01:47]} 14. Qd2
{[%clk 0:02:54.6]} 14... fxe4 {[%clk 0:01:46.1]} 15. Nxe4 {[%clk 0:02:53.1]}
15... Nd4 {[%clk 0:01:35.4]} 16. Rae1 {[%clk 0:02:50]} 16... Rae8 {[%clk
0:01:28]} 17. Ng5 {[%clk 0:02:44.2]} 17... c6 {[%clk 0:01:19.1]} 18. Nxe6 {[%clk
0:02:42.3]} 18... Rxe6 {[%clk 0:01:16.1]} 19. Rxe6 {[%clk 0:02:40.1]} 19... Qxe6
{[%clk 0:01:16]} 20. Re1 {[%clk 0:02:40.4]} 20... Qf6 {[%clk 0:01:13.1]} 21. b4
{[%clk 0:02:36.4]} 21... Nf5 {[%clk 0:00:44.1]} 22. Qe2 {[%clk 0:02:25.6]} 22...
g5 {[%clk 0:00:39.3]} 23. Bd2 {[%clk 0:02:23.2]} 23... Nd4 {[%clk 0:00:30.3]}
24. Qg4 {[%clk 0:02:15.3]} 24... h6 {[%clk 0:00:21.3]} 25. Rf1 {[%clk
0:02:11.5]} 25... Qe7 {[%clk 0:00:11.1]} 26. Rxf8+ {[%clk 0:02:10.6]} 26... Qxf8
{[%clk 0:00:10.7]} 27. Bc3 {[%clk 0:02:08]} 27... c5 {[%clk 0:00:08]} 28. bxc5
{[%clk 0:01:55.5]} 28... dxc5 {[%clk 0:00:08.9]} 29. Bxb7 {[%clk 0:01:53.4]}
29... Qf2+ {[%clk 0:00:07.1]} 30. Bg2 {[%clk 0:01:53.5]} 30... Ne2 {[%clk
0:00:05.6]} 31. Qe6+ {[%clk 0:01:49.5]} 31... Kf8 {[%clk 0:00:03.8]} 32. Bxg7+
{[%clk 0:01:38.7]} 32... Kxg7 {[%clk 0:00:04.7]} 33. Qe5+ {[%clk 0:01:36.1]}
33... Kg8 {[%clk 0:00:04.6]} 34. h4 {[%clk 0:01:35.3]} 34... Qg1+ {[%clk
0:00:02.7]} 35. Kh3 {[%clk 0:01:35.3]} 35... g4+ {[%clk 0:00:01.7]} 36. Kxg4
{[%clk 0:01:33.2]} 36... Qxg2 {[%clk 0:00:02.2]} 37. Kh5 {[%clk 0:01:16.4]}
37... Qxg3 {[%clk 0:00:01.8]} 38. Qxe2 {[%clk 0:01:13.7]} 38... Qe5+ {[%clk
0:00:00.7]} 39. Qxe5 {[%clk 0:01:13.3]} 1-0

[Event "Early-Titled-Tuesday-Blitz-May-14-2024"]
[Site "Chess.com"]
[Date "2024.05.14"]
[Round "3"]
[White "Triumphmate"]
[Black "miragha_yev"]
[Result "1-0"]
[WhiteElo "2500"]
[BlackElo "2811"]
[TimeControl "180+1"]
[EndTime "8:28:37 PDT"]
[Termination "Triumphmate won by resignation"]

1. e4 {[%clk 0:03:00.9]} 1... c6 {[%clk 0:03:00.9]} 2. d4 {[%clk 0:03:00]} 2...
d5 {[%clk 0:02:59.8]} 3. exd5 {[%clk 0:03:00.9]} 3... cxd5 {[%clk 0:02:59.3]} 4.
c3 {[%clk 0:03:01.8]} 4... Nc6 {[%clk 0:02:58]} 5. Bd3 {[%clk 0:03:02.2]} 5...
Qc7 {[%clk 0:02:58.1]} 6. Nf3 {[%clk 0:02:54.7]} 6... Bg4 {[%clk 0:02:55.4]} 7.
O-O {[%clk 0:02:55.4]} 7... e6 {[%clk 0:02:52.7]} 8. Be3 {[%clk 0:02:55.9]} 8...
Bd6 {[%clk 0:02:50.3]} 9. h3 {[%clk 0:02:56.3]} 9... Bh5 {[%clk 0:02:48]} 10.
Nbd2 {[%clk 0:02:56.6]} 10... Nge7 {[%clk 0:02:44.1]} 11. Qc2 {[%clk 0:02:56.8]}
11... h6 {[%clk 0:02:41.4]} 12. Rae1 {[%clk 0:02:55.9]} 12... g5 {[%clk
0:02:36.7]} 13. c4 {[%clk 0:02:46]} 13... Nb4 {[%clk 0:02:33.9]} 14. Qa4+ {[%clk
0:02:45.4]} 14... Qc6 {[%clk 0:02:32.7]} 15. Qxc6+ {[%clk 0:02:36.8]} 15...
Nexc6 {[%clk 0:02:33.6]} 16. Bb1 {[%clk 0:02:33.2]} 16... Bxf3 {[%clk
0:02:29.7]} 17. gxf3 {[%clk 0:02:20.5]} 17... dxc4 {[%clk 0:02:30]} 18. Nxc4
{[%clk 0:02:21.1]} 18... Bc7 {[%clk 0:02:30.7]} 19. Be4 {[%clk 0:02:18.9]} 19...
O-O-O {[%clk 0:02:28.9]} 20. a3 {[%clk 0:02:16.2]} 20... Nd5 {[%clk 0:02:28.9]}
21. b4 {[%clk 0:02:15]} 21... Nf4 {[%clk 0:02:27.3]} 22. Bxc6 {[%clk 0:02:04.5]}
22... bxc6 {[%clk 0:02:25]} 23. Bxf4 {[%clk 0:01:57.3]} 23... Bxf4 {[%clk
0:02:25.9]} 24. Na5 {[%clk 0:01:53.6]} 24... Kd7 {[%clk 0:02:09.9]} 25. Re4
{[%clk 0:01:53]} 25... Bc7 {[%clk 0:02:09]} 26. Nb3 {[%clk 0:01:51.9]} 26... Bb6
{[%clk 0:02:04.1]} 27. Rc1 {[%clk 0:01:50.4]} 27... Kc7 {[%clk 0:01:56.7]} 28.
f4 {[%clk 0:01:49.4]} 28... Kb7 {[%clk 0:01:54.2]} 29. fxg5 {[%clk 0:01:46.2]}
29... hxg5 {[%clk 0:01:55.1]} 30. Kg2 {[%clk 0:01:45.9]} 30... Rh6 {[%clk
0:01:51.6]} 31. Rc3 {[%clk 0:01:41]} 31... Rd5 {[%clk 0:01:49.8]} 32. Rc4 {[%clk
0:01:17.6]} 32... a6 {[%clk 0:01:41]} 33. a4 {[%clk 0:01:12.3]} 33... Rf5 {[%clk
0:01:39.3]} 34. a5 {[%clk 0:01:10.7]} 34... Ba7 {[%clk 0:01:39.6]} 35. Nc5+
{[%clk 0:01:08.6]} 35... Bxc5 {[%clk 0:01:39.5]} 36. bxc5 {[%clk 0:01:02.9]}
36... Rhf6 {[%clk 0:01:33]} 37. Re2 {[%clk 0:00:50]} 37... Rd5 {[%clk
0:01:32.8]} 38. Rb4+ {[%clk 0:00:49.6]} 38... Kc7 {[%clk 0:01:33.1]} 39. Reb2
{[%clk 0:00:47.3]} 39... Rf4 {[%clk 0:01:32.8]} 40. Rb8 {[%clk 0:00:41.8]} 1-0

[Event "Early-Titled-Tuesday-Blitz-May-14-2024"]
[Site "Chess.com"]
[Date "2024.05.14"]
[Round "3"]
[White "jaskol95"]
[Black "ClauAmura"]
[Result "1-0"]
[WhiteElo "2530"]
[BlackElo "2254"]
[TimeControl "180+1"]
[EndTime "8:28:37 PDT"]
[Termination "jaskol95 won by resignation"]

1. Nf3 {[%clk 0:03:00.9]} 1... d5 {[%clk 0:02:58.3]} 2. b3 {[%clk 0:03:01.2]}
2... Nf6 {[%clk 0:02:55.5]} 3. Bb2 {[%clk 0:03:01.6]} 3... g6 {[%clk 0:02:53.8]}
4. e3 {[%clk 0:03:01.3]} 4... Bg7 {[%clk 0:02:54.4]} 5. g3 {[%clk 0:03:00.6]}
5... O-O {[%clk 0:02:54.9]} 6. Bg2 {[%clk 0:03:01.2]} 6... c5 {[%clk 0:02:55]}
7. O-O {[%clk 0:03:01.7]} 7... Nc6 {[%clk 0:02:55.6]} 8. d4 {[%clk 0:02:52.4]}
8... b6 {[%clk 0:02:52.1]} 9. c4 {[%clk 0:02:48.9]} 9... Bb7 {[%clk 0:02:49.6]}
10. dxc5 {[%clk 0:02:42.2]} 10... dxc4 {[%clk 0:02:43.2]} 11. Qxd8 {[%clk
0:02:37.4]} 11... Rfxd8 {[%clk 0:02:40.6]} 12. cxb6 {[%clk 0:02:37.9]} 12...
cxb3 {[%clk 0:02:38.4]} 13. axb3 {[%clk 0:02:33.5]} 13... axb6 {[%clk
0:02:36.2]} 14. Nc3 {[%clk 0:02:33.3]} 14... Nb4 {[%clk 0:02:33.2]} 15. Nd4
{[%clk 0:02:23.8]} 15... Bxg2 {[%clk 0:02:30]} 16. Kxg2 {[%clk 0:02:24.7]} 16...
Nd3 {[%clk 0:02:23.8]} 17. Ba3 {[%clk 0:02:23]} 17... Rd7 {[%clk 0:02:16.6]} 18.
Na4 {[%clk 0:02:18.4]} 18... Rb7 {[%clk 0:02:04.3]} 19. Rfd1 {[%clk 0:02:11.8]}
19... Ne5 {[%clk 0:01:59.3]} 20. h3 {[%clk 0:01:51.6]} 20... Ne4 {[%clk
0:01:57.3]} 21. f3 {[%clk 0:01:47.5]} 21... Nd6 {[%clk 0:01:45.6]} 22. f4 {[%clk
0:01:47.5]} 22... Nd7 {[%clk 0:01:42]} 23. Bxd6 {[%clk 0:01:15.8]} 23... exd6
{[%clk 0:01:41.2]} 24. Nc3 {[%clk 0:01:16.6]} 24... Rba7 {[%clk 0:01:29.3]} 25.
Rxa7 {[%clk 0:01:12.1]} 25... Rxa7 {[%clk 0:01:29.2]} 26. Ncb5 {[%clk
0:01:12.8]} 26... Ra2+ {[%clk 0:01:29]} 27. Kf3 {[%clk 0:01:11.9]} 27... d5
{[%clk 0:01:26.8]} 28. Nc3 {[%clk 0:01:05.8]} 28... Rh2 {[%clk 0:01:26]} 29.
Nxd5 {[%clk 0:01:05.2]} 29... Rxh3 {[%clk 0:01:23.6]} 30. Rc1 {[%clk 0:00:48.4]}
30... h5 {[%clk 0:01:22.7]} 31. Rc8+ {[%clk 0:00:47.5]} 31... Kh7 {[%clk
0:01:21.9]} 32. Rc7 {[%clk 0:00:48.1]} 32... Bxd4 {[%clk 0:01:11.1]} 33. Rxd7
{[%clk 0:00:47]} 33... Bc5 {[%clk 0:01:10.3]} 34. Rxf7+ {[%clk 0:00:47.3]} 34...
Kg8 {[%clk 0:01:06]} 35. Rb7 {[%clk 0:00:47.6]} 35... h4 {[%clk 0:01:05.3]} 36.
Kg4 {[%clk 0:00:37.8]} 36... hxg3 {[%clk 0:01:03.8]} 37. Kxh3 {[%clk 0:00:37.6]}
1-0

[Event "Early-Titled-Tuesday-Blitz-May-14-2024"]
[Site "Chess.com"]
[Date "2024.05.14"]
[Round "3"]
[White "Fh2411"]
[Black "mfschulz"]
[Result "1-0"]
[WhiteElo "2550"]
[BlackElo "2322"]
[TimeControl "180+1"]
[EndTime "8:28:37 PDT"]
[Termination "Fh2411 won by resignation"]

1. d4 {[%clk 0:03:00.9]} 1... Nf6 {[%clk 0:02:55.2]} 2. Nf3 {[%clk 0:03:01]}
2... c5 {[%clk 0:02:54.6]} 3. c3 {[%clk 0:03:00.2]} 3... g6 {[%clk 0:02:54.1]}
4. Bf4 {[%clk 0:02:59.9]} 4... Bg7 {[%clk 0:02:54.1]} 5. e3 {[%clk 0:02:59.9]}
5... d5 {[%clk 0:02:54.2]} 6. h3 {[%clk 0:02:59.5]} 6... Nc6 {[%clk 0:02:54.4]}
7. Nbd2 {[%clk 0:02:58.9]} 7... O-O {[%clk 0:02:54.4]} 8. dxc5 {[%clk
0:02:58.5]} 8... a5 {[%clk 0:02:51.4]} 9. a4 {[%clk 0:02:58.2]} 9... Bf5 {[%clk
0:02:46.3]} 10. Bb5 {[%clk 0:02:53.1]} 10... Nd7 {[%clk 0:02:37.7]} 11. Nb3
{[%clk 0:02:48.4]} 11... e5 {[%clk 0:02:31.3]} 12. Bg5 {[%clk 0:02:48.3]} 12...
f6 {[%clk 0:02:30.2]} 13. Qxd5+ {[%clk 0:02:45.4]} 13... Kh8 {[%clk 0:02:28.8]}
14. Bh4 {[%clk 0:02:45.5]} 14... Qe7 {[%clk 0:02:22.3]} 15. Bc4 {[%clk 0:02:36]}
15... Rg8 {[%clk 0:02:17.5]} 16. O-O {[%clk 0:02:29.2]} 16... Bc2 {[%clk
0:02:06.2]} 17. Qd6 {[%clk 0:02:24]} 17... Rge8 {[%clk 0:01:59.2]} 18. Qxe7
{[%clk 0:02:17.2]} 18... Rxe7 {[%clk 0:01:58.7]} 19. Nfd2 {[%clk 0:02:17.6]}
19... Rb8 {[%clk 0:01:51.6]} 20. Rfc1 {[%clk 0:02:16.6]} 20... Bxb3 {[%clk
0:01:41.8]} 21. Nxb3 {[%clk 0:02:15.8]} 21... b6 {[%clk 0:01:42]} 22. cxb6
{[%clk 0:02:06.7]} 22... Nxb6 {[%clk 0:01:41.8]} 23. Bb5 {[%clk 0:02:06.5]}
23... Na7 {[%clk 0:01:37.9]} 24. Nxa5 {[%clk 0:02:06.4]} 24... Nxb5 {[%clk
0:01:32.7]} 25. axb5 {[%clk 0:02:07.3]} 25... Rd7 {[%clk 0:01:24.3]} 26. Rd1
{[%clk 0:01:54.7]} 26... Rxd1+ {[%clk 0:01:21.4]} 27. Rxd1 {[%clk 0:01:54]}
27... g5 {[%clk 0:01:17.6]} 28. Bg3 {[%clk 0:01:53.5]} 28... h5 {[%clk
0:01:17.5]} 29. f3 {[%clk 0:01:51.8]} 29... Na4 {[%clk 0:01:17.3]} 30. c4 {[%clk
0:01:28.2]} 30... Nxb2 {[%clk 0:01:13.6]} 31. Rd2 {[%clk 0:01:28.6]} 31... Na4
{[%clk 0:01:09.9]} 32. e4 {[%clk 0:01:22.8]} 32... Bf8 {[%clk 0:01:08.5]} 33.
Nc6 {[%clk 0:01:22.7]} 33... Ra8 {[%clk 0:00:59.9]} 34. Bf2 {[%clk 0:01:22.6]}
34... Nc5 {[%clk 0:00:58]} 35. Rd8 {[%clk 0:01:16.9]} 35... Ra1+ {[%clk
0:00:51.5]} 36. Kh2 {[%clk 0:01:17]} 36... Kg7 {[%clk 0:00:51.4]} 37. Rxf8
{[%clk 0:01:12.3]} 37... Kxf8 {[%clk 0:00:50.4]} 38. Bxc5+ {[%clk 0:01:11.8]}
38... Kf7 {[%clk 0:00:49.4]} 39. b6 {[%clk 0:01:11.7]} 39... Rb1 {[%clk
0:00:48.5]} 40. Na5 {[%clk 0:01:11.8]} 40... Ke6 {[%clk 0:00:43.5]} 41. b7
{[%clk 0:01:11.8]} 41... Kd7 {[%clk 0:00:43.4]} 42. Ba7 {[%clk 0:01:11.8]} 42...
Kc7 {[%clk 0:00:41.6]} 43. b8=Q+ {[%clk 0:01:11.3]} 43... Rxb8 {[%clk
0:00:41.7]} 44. Bxb8+ {[%clk 0:01:12.2]} 44... Kxb8 {[%clk 0:00:41.9]} 45. Nc6+
{[%clk 0:01:09.9]} 45... Kc7 {[%clk 0:00:41.8]} 46. Ne7 {[%clk 0:01:10.7]} 46...
Kd6 {[%clk 0:00:40.5]} 47. Nd5 {[%clk 0:01:11.4]} 47... f5 {[%clk 0:00:39.2]}
48. exf5 {[%clk 0:01:10.6]} 48... Kc5 {[%clk 0:00:37.5]} 49. f6 {[%clk
0:01:10.5]} 1-0

[Event "Early-Titled-Tuesday-Blitz-May-14-2024"]
[Site "Chess.com"]
[Date "2024.05.14"]
[Round "3"]
[White "czechbul17"]
[Black "Ural_bogatyr"]
[Result "0-1"]
[WhiteElo "2168"]
[BlackElo "2567"]
[TimeControl "180+1"]
[EndTime "8:28:38 PDT"]
[Termination "Ural_bogatyr won by resignation"]

1. d4 {[%clk 0:03:00.9]} 1... Nf6 {[%clk 0:02:59.5]} 2. c4 {[%clk 0:03:00.6]}
2... e6 {[%clk 0:02:59.7]} 3. Nf3 {[%clk 0:02:59.5]} 3... d5 {[%clk 0:03:00]} 4.
g3 {[%clk 0:02:58.7]} 4... Be7 {[%clk 0:02:58.3]} 5. Bg2 {[%clk 0:02:57.8]} 5...
O-O {[%clk 0:02:58.9]} 6. O-O {[%clk 0:02:58]} 6... dxc4 {[%clk 0:02:59.5]} 7.
Qc2 {[%clk 0:02:57.7]} 7... b5 {[%clk 0:02:59.9]} 8. a4 {[%clk 0:02:53.6]} 8...
Bb7 {[%clk 0:02:59.7]} 9. axb5 {[%clk 0:02:52.5]} 9... a6 {[%clk 0:02:59.5]} 10.
Nc3 {[%clk 0:02:45.8]} 10... axb5 {[%clk 0:02:58.4]} 11. Rxa8 {[%clk 0:02:42.1]}
11... Bxa8 {[%clk 0:02:59.3]} 12. Nxb5 {[%clk 0:02:42.7]} 12... Bd5 {[%clk
0:02:59.6]} 13. Ne5 {[%clk 0:02:25.8]} 13... Bxg2 {[%clk 0:02:51.5]} 14. Kxg2
{[%clk 0:02:26.7]} 14... Qd5+ {[%clk 0:02:50.6]} 15. e4 {[%clk 0:02:15.4]} 15...
Qxb5 {[%clk 0:02:50.4]} 16. Nxc4 {[%clk 0:02:15.8]} 16... Nxe4 {[%clk
0:02:45.4]} 17. Qxe4 {[%clk 0:02:09.1]} 17... Qxc4 {[%clk 0:02:44.7]} 18. Bf4
{[%clk 0:02:10]} 18... c5 {[%clk 0:02:35.1]} 19. Rd1 {[%clk 0:02:07.2]} 19...
cxd4 {[%clk 0:02:31.6]} 20. Rxd4 {[%clk 0:02:06.3]} 20... Qc6 {[%clk 0:02:31.5]}
21. Qxc6 {[%clk 0:02:01.6]} 21... Nxc6 {[%clk 0:02:32.4]} 22. Rc4 {[%clk
0:02:02.2]} 22... Rc8 {[%clk 0:02:28.5]} 23. Bd2 {[%clk 0:01:59.7]} 23... Bf6
{[%clk 0:02:20.9]} 24. b3 {[%clk 0:01:57.3]} 24... Kf8 {[%clk 0:02:19.4]} 25.
Be3 {[%clk 0:01:53.5]} 25... Ke8 {[%clk 0:02:18.8]} 26. b4 {[%clk 0:01:45.7]}
26... Ne7 {[%clk 0:02:18.3]} 27. Re4 {[%clk 0:01:37.6]} 27... Rb8 {[%clk
0:02:15.9]} 28. Bc5 {[%clk 0:01:37]} 28... Nd5 {[%clk 0:02:13.6]} 29. Rg4 {[%clk
0:01:32.5]} 29... g6 {[%clk 0:02:12.6]} 30. h4 {[%clk 0:01:31.3]} 30... h5
{[%clk 0:02:12.2]} 31. Re4 {[%clk 0:01:31.2]} 31... Be7 {[%clk 0:02:12.3]} 32.
Rc4 {[%clk 0:01:30.8]} 32... Nxb4 {[%clk 0:02:06.1]} 33. Be3 {[%clk 0:01:30.2]}
33... Nd5 {[%clk 0:02:05.6]} 34. Bd4 {[%clk 0:01:30.7]} 34... Kd7 {[%clk
0:01:59.9]} 35. Ra4 {[%clk 0:01:29.6]} 35... Bd6 {[%clk 0:01:56.4]} 36. Ra7+
{[%clk 0:01:28.1]} 36... Bc7 {[%clk 0:01:55.6]} 37. Be5 {[%clk 0:01:27.9]} 37...
f6 {[%clk 0:01:51.7]} 38. Bd4 {[%clk 0:01:27.3]} 38... Rb4 {[%clk 0:01:48.8]}
39. Bc5 {[%clk 0:01:26.4]} 39... Rb2 {[%clk 0:01:46.6]} 40. Ra6 {[%clk
0:01:24.4]} 40... f5 {[%clk 0:01:45.1]} 41. Bd4 {[%clk 0:01:22.3]} 41... Rb4
{[%clk 0:01:43.3]} 42. Bg7 {[%clk 0:01:21.2]} 42... Bb6 {[%clk 0:01:40.7]} 43.
Ra2 {[%clk 0:01:17]} 43... f4 {[%clk 0:01:39.2]} 44. Kh3 {[%clk 0:01:04.1]}
44... fxg3 {[%clk 0:01:36]} 45. fxg3 {[%clk 0:01:05]} 45... Rb3 {[%clk
0:01:35.2]} 46. Be5 {[%clk 0:01:01.5]} 46... Ne3 {[%clk 0:01:29.9]} 47. Rd2+
{[%clk 0:00:42.6]} 47... Nd5 {[%clk 0:01:29.5]} 48. Ra2 {[%clk 0:00:41.8]} 48...
Re3 {[%clk 0:01:29.1]} 49. Bb8 {[%clk 0:00:36]} 49... Bc7 {[%clk 0:01:25.9]} 50.
Ra7 {[%clk 0:00:35.3]} 50... Rxg3+ {[%clk 0:01:21.8]} 51. Kh2 {[%clk 0:00:35.7]}
51... Ra3+ {[%clk 0:01:18.8]} 0-1

[Event "Early-Titled-Tuesday-Blitz-May-14-2024"]
[Site "Chess.com"]
[Date "2024.05.14"]
[Round "3"]
[White "rhwr"]
[Black "Dacean99"]
[Result "0-1"]
[WhiteElo "2328"]
[BlackElo "2610"]
[TimeControl "180+1"]
[EndTime "8:28:38 PDT"]
[Termination "Dacean99 won by resignation"]

1. e4 {[%clk 0:02:53.8]} 1... c5 {[%clk 0:02:57.9]} 2. Be2 {[%clk 0:02:53.4]}
2... Nc6 {[%clk 0:02:56.9]} 3. f4 {[%clk 0:02:51.6]} 3... d6 {[%clk 0:02:56.1]}
4. Nf3 {[%clk 0:02:51.5]} 4... g6 {[%clk 0:02:55.4]} 5. O-O {[%clk 0:02:51.2]}
5... Bg7 {[%clk 0:02:54.3]} 6. c3 {[%clk 0:02:50.3]} 6... e5 {[%clk 0:02:50.7]}
7. d3 {[%clk 0:02:49.3]} 7... Nge7 {[%clk 0:02:48.5]} 8. Be3 {[%clk 0:02:42.4]}
8... b6 {[%clk 0:02:42.4]} 9. c4 {[%clk 0:02:36]} 9... exf4 {[%clk 0:02:40.7]}
10. Bc1 {[%clk 0:02:36.2]} 10... O-O {[%clk 0:02:36.9]} 11. Nc3 {[%clk
0:02:35.8]} 11... Ne5 {[%clk 0:02:31.7]} 12. Bxf4 {[%clk 0:02:32.3]} 12... N7c6
{[%clk 0:02:30.1]} 13. Nd5 {[%clk 0:02:21.7]} 13... Be6 {[%clk 0:02:28.5]} 14.
Rb1 {[%clk 0:02:18.3]} 14... Rc8 {[%clk 0:02:24.3]} 15. a3 {[%clk 0:02:15.2]}
15... Nxf3+ {[%clk 0:02:21.9]} 16. Bxf3 {[%clk 0:02:13.2]} 16... Nd4 {[%clk
0:02:18.4]} 17. b4 {[%clk 0:02:09.8]} 17... Bxd5 {[%clk 0:02:14.2]} 18. exd5
{[%clk 0:02:09.4]} 18... Re8 {[%clk 0:02:11.1]} 19. bxc5 {[%clk 0:02:07.7]}
19... bxc5 {[%clk 0:02:09.5]} 20. Qa4 {[%clk 0:01:45.2]} 20... Be5 {[%clk
0:01:54.5]} 21. Bxe5 {[%clk 0:01:28]} 21... Rxe5 {[%clk 0:01:55.4]} 22. Rb7
{[%clk 0:01:09]} 22... Qg5 {[%clk 0:01:38.5]} 23. Be4 {[%clk 0:00:42.5]} 23...
Ne2+ {[%clk 0:01:25.8]} 24. Kh1 {[%clk 0:00:42.2]} 24... Qe3 {[%clk 0:01:18.2]}
25. Qd7 {[%clk 0:00:28.2]} 25... Ng3+ {[%clk 0:01:14]} 26. hxg3 {[%clk
0:00:27.7]} 26... Rh5+ {[%clk 0:01:14.6]} 27. Qh3 {[%clk 0:00:27.1]} 27... Rxh3+
{[%clk 0:01:15.2]} 28. gxh3 {[%clk 0:00:27.2]} 28... f5 {[%clk 0:01:15.2]} 29.
Bg2 {[%clk 0:00:24.2]} 29... Qxg3 {[%clk 0:01:12.6]} 30. Rxa7 {[%clk 0:00:21.3]}
30... Re8 {[%clk 0:01:11.4]} 31. Rb1 {[%clk 0:00:17.7]} 31... Re1+ {[%clk
0:01:09.7]} 32. Rxe1 {[%clk 0:00:17.1]} 32... Qxe1+ {[%clk 0:01:10.6]} 33. Kh2
{[%clk 0:00:17.7]} 33... Qe5+ {[%clk 0:01:10.8]} 34. Kh1 {[%clk 0:00:17.8]}
34... Qc3 {[%clk 0:01:08.2]} 35. Bf1 {[%clk 0:00:14.1]} 35... Qe1 {[%clk
0:01:06]} 36. Kg1 {[%clk 0:00:14]} 36... f4 {[%clk 0:01:06.2]} 37. Rd7 {[%clk
0:00:10.2]} 37... f3 {[%clk 0:01:04.2]} 38. Rxd6 {[%clk 0:00:10.3]} 38... Qg3+
{[%clk 0:01:04.3]} 0-1

[Event "Early-Titled-Tuesday-Blitz-May-14-2024"]
[Site "Chess.com"]
[Date "2024.05.14"]
[Round "3"]
[White "Fjal"]
[Black "shrek4life02"]
[Result "0-1"]
[WhiteElo "2331"]
[BlackElo "2608"]
[TimeControl "180+1"]
[EndTime "8:28:39 PDT"]
[Termination "shrek4life02 won by resignation"]

1. Nf3 {[%clk 0:02:58.9]} 1... Nf6 {[%clk 0:02:49.6]} 2. g3 {[%clk 0:02:57.1]}
2... c5 {[%clk 0:02:49.2]} 3. Bg2 {[%clk 0:02:58]} 3... Nc6 {[%clk 0:02:49.6]}
4. O-O {[%clk 0:02:58]} 4... d5 {[%clk 0:02:50.2]} 5. d4 {[%clk 0:02:58.5]} 5...
cxd4 {[%clk 0:02:47.3]} 6. Nxd4 {[%clk 0:02:59.4]} 6... e5 {[%clk 0:02:48]} 7.
Nxc6 {[%clk 0:02:59.5]} 7... bxc6 {[%clk 0:02:48.9]} 8. c4 {[%clk 0:03:00.1]}
8... Be7 {[%clk 0:02:47.3]} 9. Qa4 {[%clk 0:02:59.6]} 9... Bd7 {[%clk
0:02:44.5]} 10. Nc3 {[%clk 0:03:00.1]} 10... O-O {[%clk 0:02:44.1]} 11. Bg5
{[%clk 0:02:56.2]} 11... d4 {[%clk 0:02:44.4]} 12. Bxf6 {[%clk 0:02:42.6]} 12...
Bxf6 {[%clk 0:02:45.3]} 13. Ne4 {[%clk 0:02:43]} 13... Be7 {[%clk 0:02:45.6]}
14. c5 {[%clk 0:02:42.5]} 14... f5 {[%clk 0:02:34.9]} 15. Nd6 {[%clk 0:02:40]}
15... Bxd6 {[%clk 0:02:34.2]} 16. cxd6 {[%clk 0:02:40.9]} 16... Qb6 {[%clk
0:02:32.6]} 17. Rac1 {[%clk 0:02:37.3]} 17... Rac8 {[%clk 0:02:31.4]} 18. b4
{[%clk 0:02:19.5]} 18... Rfd8 {[%clk 0:02:30.2]} 19. Rc5 {[%clk 0:02:10.9]}
19... Qb8 {[%clk 0:02:05.9]} 20. Rxe5 {[%clk 0:01:49.4]} 20... Qxd6 {[%clk
0:02:06]} 21. Rc5 {[%clk 0:01:49.9]} 21... Rc7 {[%clk 0:02:02.2]} 22. Rd1 {[%clk
0:01:46.9]} 22... Kh8 {[%clk 0:01:59.9]} 23. h4 {[%clk 0:01:40.8]} 23... f4
{[%clk 0:01:58.5]} 24. Kh2 {[%clk 0:01:29.5]} 24... Re8 {[%clk 0:01:51.6]} 25.
Qc2 {[%clk 0:01:27.7]} 25... fxg3+ {[%clk 0:01:51.2]} 26. fxg3 {[%clk
0:01:27.3]} 26... Re3 {[%clk 0:01:50.6]} 27. Rg5 {[%clk 0:01:19]} 27... Be8
{[%clk 0:01:36.6]} 28. Qd2 {[%clk 0:01:01.3]} 28... Rce7 {[%clk 0:01:20]} 29.
Bf3 {[%clk 0:00:30.1]} 29... h6 {[%clk 0:01:18.2]} 30. Rg4 {[%clk 0:00:30.3]}
30... d3 {[%clk 0:01:03.7]} 31. Qc3 {[%clk 0:00:24.1]} 31... dxe2 {[%clk
0:00:45.9]} 32. Rxd6 {[%clk 0:00:20.3]} 32... Rxc3 {[%clk 0:00:44.4]} 33. Bxe2
{[%clk 0:00:15.1]} 33... Rxe2+ {[%clk 0:00:45.3]} 0-1